bitfinex/quotes_ETHUSD_20251018
["timestamp","ask_amount","ask_price","bid_price","bid_amount"]
[1760821015569,0.2087,3898.7,3898.6,0.002]
[1760821015927,0.3117,3898.7,3898.6,0.002]
[1760821018160,2.56439944,3899.6,3898.6,0.002]
[1760821018466,0.14370325,3898.7,3898.6,0.002]
[1760821018754,0.099,3898.7,3898.6,0.002]
[1760821019725,0.2127,3898.9,3898.6,0.002]
[1760821019931,0.3117,3898.9,3898.6,0.002]
[1760821020250,0.3096,3899.5,3898.7,2.56495754]
[1760821020451,0.099,3899.4,3898.7,2.56495754]
[1760821020846,0.04470167,3899.3,3898.7,2.56495754]
[1760821022051,0.04470167,3899.3,3898.6,2.56700468]
[1760821024667,0.128,3899.1,3898.6,2.56700468]
[1760821024874,0.128,3899.1,3898.6,3.04010468]
[1760821026254,0.128,3899.1,3898.7,2.56495526]
[1760821026572,0.128,3899.1,3898.7,3.03805526]
[1760821028275,0.17270167,3899.3,3899.1,2.56465083]
[1760821028975,0.17270167,3899.3,3899.1,3.00245083]
[1760821029670,0.04470167,3899.3,3899.2,3.00242864]
[1760821030282,0.227,3899.8,3899.3,2.56455284]
[1760821030572,0.128,3899.8,3899.2,2.56462301]
[1760821030882,0.128,3899.8,3899.1,0.128]
[1760821031173,0.099,3899.7,3899.1,6.56268486]
[1760821032577,0.099,3899.7,3899.1,3.99799999]
[1760821032578,0.04469761,3899.6,3899.1,3.99799999]
[1760821032773,0.14369761,3899.6,3899.1,3.99799999]
[1760821032985,0.14369761,3899.6,3899.1,4.65428141]
[1760821032986,0.04469761,3899.6,3899.1,4.65428141]
[1760821033177,0.099,3899.5,3899.1,3.99799999]
[1760821033379,0.099,3899.4,3899.1,3.86999999]
[1760821033597,0.099,3899.3,3899.1,3.86999999]
[1760821034198,0.099,3899.2,3899.1,3.86999999]
[1760821034901,0.1437019,3899.2,3899.1,3.86999999]
[1760821037069,0.128,3899.1,3898.6,0.002]
[1760821037706,0.227,3899.1,3898.6,0.002]
[1760821041474,0.128,3899.1,3898.6,0.002]
[1760821041698,0.128,3899.1,3898.7,0.4378]
[1760821042680,0.128,3899.1,3898.6,0.002]
[1760821043003,0.128,3899.1,3898.6,3.87199999]
[1760821043184,0.227,3899.1,3898.6,3.87199999]
[1760821046112,0.227,3899.1,3898.6,4.30979999]
[1760821046908,0.128,3899.1,3898.6,3.87199999]
[1760821047111,0.128,3899.1,3898.7,0.4378]
[1760821047325,0.128,3899.1,3898.7,3.00271086]
[1760821047525,0.128,3899.1,3898.8,0.4378]
[1760821047692,0.128,3899.1,3898.9,0.4378]
[1760821051101,0.128,3899.1,3899.0,0.4378]
[1760821052008,0.128,3899.1,3898.7,2.56495296]
[1760821052400,0.128,3899.1,3898.9,0.4378]
[1760821056254,0.0457019,3899.2,3899.0,3.02276019]
[1760821056654,0.0457019,3899.2,3899.1,0.458]
[1760821058738,0.0457019,3899.2,3898.9,0.458]
[1760821063083,0.0457019,3899.2,3898.8,6.43488857]
[1760821063567,0.0457019,3899.2,3898.8,6.89288857]
[1760821065968,0.0457019,3899.2,3898.8,4.32799999]
[1760821068970,0.0457019,3899.2,3898.8,3.86999999]
[1760821069274,0.1447019,3899.2,3898.8,3.86999999]
[1760821069456,0.0457019,3899.2,3898.8,3.86999999]
[1760821069664,0.0457019,3899.2,3898.8,4.32799999]
[1760821070671,0.0457019,3899.2,3898.8,3.86999999]
[1760821070969,0.1447019,3899.2,3898.8,3.86999999]
[1760821071371,0.0457019,3899.2,3898.8,3.86999999]
[1760821071575,0.0457019,3899.2,3898.8,4.32799999]
[1760821074181,0.0457019,3899.2,3898.9,0.458]
[1760821074987,0.0457019,3899.2,3898.9,3.02282214]
[1760821075463,0.0457019,3899.2,3899.0,0.458]
[1760821075857,0.0457019,3899.2,3898.8,6.43686926]
[1760821076089,0.0457019,3899.2,3899.0,0.458]
[1760821076295,0.0457019,3899.2,3898.8,4.32999999]
[1760821077093,0.0457019,3899.2,3898.8,3.87199999]
[1760821077401,0.1447019,3899.2,3898.8,3.87199999]
[1760821077760,0.099,3899.1,3898.8,3.87199999]
[1760821078454,0.0457019,3899.2,3898.8,3.87199999]
[1760821078658,0.1447019,3899.2,3898.8,3.87199999]
[1760821080189,0.0457019,3899.2,3898.8,3.87199999]
[1760821080389,0.227,3899.1,3898.8,3.87199999]
[1760821080610,0.128,3899.1,3898.8,3.87199999]
[1760821080900,0.099,3899.0,3898.8,3.87199999]
[1760821081062,0.099,3898.9,3898.8,3.87199999]
[1760821081878,0.62928236,3899.1,3898.8,3.87199999]
[1760821082074,0.099,3899.0,3898.8,3.87199999]
[1760821082881,0.53028236,3899.1,3898.8,3.87199999]
[1760821083263,5.13802597,3898.9,3898.8,0.002]
[1760821083462,4.50442597,3898.9,3898.8,0.002]
[1760821083699,4.144722,3898.9,3898.8,0.002]
[1760821083993,4.60452597,3898.9,3898.8,0.002]
[1760821086467,5.05156568,3898.9,3898.8,0.002]
[1760821087102,4.64923687,3898.9,3898.8,0.002]
[1760821087508,1.7727109,3898.9,3898.8,0.002]
[1760821089403,2.17502247,3898.9,3898.8,0.002]
[1760821089701,2.13031157,3898.9,3898.8,0.002]
[1760821090910,4.69513754,3898.9,3898.8,0.002]
[1760821091578,5.00683754,3898.9,3898.8,0.002]
[1760821092478,5.05154801,3898.9,3898.8,0.002]
[1760821094005,4.73984801,3898.9,3898.8,0.002]
[1760821096377,5.04944801,3898.9,3898.8,0.002]
[1760821096583,9.40021667,3898.9,3898.8,0.002]
[1760821096795,5.39818067,3898.9,3898.8,0.002]
[1760821097117,5.05154801,3898.9,3898.8,0.002]
[1760821100116,9.39074301,3898.9,3898.8,0.002]
[1760821100485,7.75125267,3898.9,3898.8,0.002]
[1760821101220,8.03444067,3898.9,3898.8,0.002]
[1760821102109,7.88012667,3898.9,3898.8,0.002]
[1760821103891,8.51372667,3898.9,3898.8,0.002]
[1760821104089,4.73984801,3898.9,3898.8,0.002]
[1760821106323,6.90363501,3898.9,3898.8,0.002]
[1760821111120,7.63733501,3898.9,3898.8,0.002]
[1760821112342,27.38571267,3898.9,3898.8,0.002]
[1760821112549,26.36126667,3898.9,3898.8,0.002]
[1760821112712,23.86635867,3898.9,3898.8,0.002]
[1760821113316,6.03068067,3898.9,3898.8,0.002]
[1760821113514,22.86661567,3898.9,3898.8,0.002]
[1760821114427,23.86635867,3898.9,3898.8,0.002]
[1760821114944,23.4640471,3898.9,3898.8,0.002]
[1760821115127,22.0617801,3898.9,3898.8,0.002]
[1760821115715,21.0617801,3898.9,3898.8,0.002]
[1760821115920,18.2284321,3898.9,3898.8,0.002]
[1760821116554,18.4212741,3898.9,3898.8,0.002]
[1760821116951,17.5793301,3898.9,3898.8,0.002]
[1760821117541,5.6283691,3898.9,3898.8,0.002]
[1760821117742,17.5793301,3898.9,3898.8,0.002]
[1760821118154,14.1203201,3898.9,3898.8,0.002]
[1760821118334,14.52267977,3898.9,3898.8,0.002]
[1760821119732,19.47198777,3898.9,3898.8,0.002]
[1760821120118,17.47198777,3898.9,3898.8,0.002]
[1760821120321,16.16632077,3898.9,3898.8,0.002]
[1760821121857,6.03072877,3898.9,3898.8,0.002]
[1760821122156,13.44703477,3898.9,3898.8,0.002]
[1760821122956,13.63987577,3898.9,3898.8,0.002]
[1760821123959,13.63730577,3898.9,3898.8,0.002]
[1760821128460,13.63730277,3898.9,3898.8,0.002]
[1760821129443,13.44446477,3898.9,3898.8,0.002]
[1760821130159,12.25353277,3898.9,3898.8,0.002]
[1760821130340,9.03377877,3898.9,3898.8,0.002]
[1760821130740,2.80867014,3898.9,3898.8,0.4625]
[1760821130931,5.37349611,3898.9,3898.8,0.4625]
[1760821132061,7.61919511,3898.9,3898.8,0.002]
[1760821132932,5.37349611,3898.9,3898.8,0.002]
[1760821133743,5.37349611,3898.9,3898.8,0.4625]
[1760821138145,5.37349611,3898.9,3898.8,0.002]
[1760821145172,6.03182877,3898.9,3898.8,0.002]
[1760821146293,6.03460797,3898.9,3898.8,0.002]
[1760821148619,6.13470797,3898.9,3898.8,0.002]
[1760821149210,6.03460797,3898.9,3898.8,0.002]
[1760821150805,22.05926197,3898.9,3898.8,0.002]
[1760821151105,22.15936197,3898.9,3898.8,0.002]
[1760821153700,28.06495597,3898.9,3898.8,0.002]
[1760821154014,27.23017497,3898.9,3898.8,0.002]
[1760821154805,26.19817897,3898.9,3898.8,0.002]
[1760821155013,16.46401397,3898.9,3898.8,0.002]
[1760821155707,5.82300797,3898.9,3898.8,0.002]
[1760821155910,16.65659597,3898.9,3898.8,0.002]
[1760821156813,16.65659697,3898.9,3898.8,0.002]
[1760821157034,10.47346697,3898.9,3898.8,0.002]
[1760821157816,10.50652497,3898.9,3898.8,0.002]
[1760821158429,9.38713831,3898.9,3898.8,0.002]
[1760821159319,7.88013831,3898.9,3898.8,0.002]
[1760821159887,8.87171031,3898.9,3898.8,0.4475]
[1760821160311,8.09250531,3898.9,3898.8,0.4475]
[1760821161016,9.88390297,3898.9,3898.8,0.002]
[1760821161186,9.31590297,3898.9,3898.8,0.002]
[1760821161886,5.47637531,3898.9,3898.8,0.002]
[1760821162087,5.47637531,3898.9,3898.8,0.4475]
[1760821163120,7.93451931,3898.9,3898.8,0.4475]
[1760821163619,7.93451931,3898.9,3898.8,0.002]
[1760821164024,5.47637531,3898.9,3898.8,0.002]
[1760821164225,9.71497531,3898.9,3898.8,0.002]
[1760821164428,10.06160797,3898.9,3898.8,0.002]
[1760821165094,10.25444197,3898.9,3898.8,0.002]
[1760821166196,11.25444197,3898.9,3898.8,0.002]
[1760821167368,11.25681497,3898.9,3898.8,0.002]
[1760821169129,11.35581497,3898.9,3898.8,0.002]
[1760821169332,12.66524697,3898.9,3898.8,0.002]
[1760821170435,14.07131597,3898.9,3898.8,0.002]
[1760821171128,14.28401597,3898.9,3898.8,0.002]
[1760821171629,18.65113097,3898.9,3898.8,0.002]
[1760821172422,11.66211764,3898.9,3898.8,0.4475]
[1760821172734,12.01891664,3898.9,3898.8,0.4475]
[1760821173742,12.00630164,3898.9,3898.8,0.4475]
[1760821174318,12.00630164,3898.9,3898.8,0.002]
[1760821174516,12.63990164,3898.9,3898.8,0.002]
[1760821174757,28.0705043,3898.9,3898.8,0.002]
[1760821175038,27.7509253,3898.9,3898.8,0.002]
[1760821175421,27.70621483,3898.9,3898.8,0.002]
[1760821175616,10.39125716,3898.9,3898.8,0.002]
[1760821175842,28.82548216,3898.9,3898.8,0.002]
[1760821176208,28.52233916,3898.9,3898.8,0.002]
[1760821176708,10.39125716,3898.9,3898.8,0.002]
[1760821176908,28.91818716,3898.9,3898.8,0.002]
[1760821177727,30.04557551,3898.9,3898.8,0.002]
[1760821178438,28.39526951,3898.9,3898.8,0.002]
[1760821178868,29.39796351,3898.9,3898.8,0.002]
[1760821179443,29.35324516,3898.9,3898.8,0.002]
[1760821179868,29.99805088,3898.9,3898.8,0.002]
[1760821180269,3.19855754,3898.7,3898.4,0.002]
[1760821180474,25.27970446,3898.5,3898.4,0.002]
[1760821180676,27.401634,3898.3,3898.2,0.002]
[1760821180856,33.77636454,3898.2,3898.1,0.002]
[1760821181044,34.67103591,3898.2,3898.1,0.002]
[1760821181255,4.92695235,3898.1,3897.4,0.002]
[1760821181471,40.29604305,3898.1,3897.4,0.002]
[1760821181677,40.39724305,3898.1,3897.4,0.002]
[1760821181992,34.92708397,3897.9,3897.4,0.002]
[1760821182194,35.46744997,3897.9,3897.4,0.002]
[1760821182488,35.56984997,3897.9,3897.4,0.002]
[1760821182690,35.97233818,3897.9,3897.4,0.002]
[1760821182888,32.89195527,3897.5,3897.4,0.002]
[1760821183087,39.0766206,3897.5,3897.4,0.002]
[1760821183248,38.5469206,3897.5,3897.4,0.002]
[1760821183600,23.34087974,3896.5,3896.0,0.002]
[1760821183748,3.20007161,3896.4,3896.0,0.002]
[1760821183942,3.20026923,3896.1,3896.0,0.002]
[1760821184149,24.49955597,3896.1,3896.0,0.002]
[1760821184383,23.97673136,3896.1,3896.0,0.002]
[1760821184591,36.88976536,3896.1,3896.0,0.002]
[1760821184890,36.9345153,3896.1,3896.0,0.002]
[1760821185590,10.5705103,3896.1,3896.0,0.002]
[1760821185873,13.36246302,3896.1,3896.0,0.002]
[1760821186321,13.8618985,3896.1,3896.0,0.002]
[1760821186540,3.20073046,3895.4,3895.3,0.4526]
[1760821186688,9.63234979,3895.4,3895.3,0.4526]
[1760821187088,9.6771031,3895.4,3895.3,0.4526]
[1760821187423,4.29532818,3895.1,3894.0,0.6795]
[1760821187825,4.29532818,3895.1,3895.0,0.6795]
[1760821188325,4.29532818,3895.1,3895.0,0.2269]
[1760821188627,4.29532818,3895.1,3895.0,0.6795]
[1760821189010,2.56732818,3895.1,3895.0,0.6795]
[1760821190604,2.61208331,3895.1,3895.0,0.6795]
[1760821191205,3.01481282,3895.1,3895.0,0.6795]
[1760821191427,3.78711398,3895.1,3895.0,0.6815]
[1760821193743,3.38438447,3895.1,3895.0,0.6815]
[1760821194650,0.81705629,3895.1,3895.0,0.6815]
[1760821194833,0.04475513,3895.1,3895.0,0.6815]
[1760821195820,2.61208331,3895.1,3895.0,0.6815]
[1760821196653,3.01480834,3895.1,3895.0,0.6815]
[1760821197146,0.44748016,3895.1,3895.0,0.6815]
[1760821198112,0.44748016,3895.1,3895.0,0.002]
[1760821198441,4.74280834,3895.1,3895.0,0.002]
[1760821198609,4.74280834,3895.1,3895.0,0.4546]
[1760821199238,4.74280834,3895.1,3895.0,0.002]
[1760821199239,5.17887085,3895.1,3895.0,0.002]
[1760821199420,18.4578418,3895.1,3895.0,0.002]
[1760821199627,13.9094632,3895.1,3895.0,0.002]
[1760821199825,10.27732607,3895.1,3895.0,0.002]
[1760821200049,9.69763507,3895.1,3895.0,0.002]
[1760821200248,1.728,3895.0,3894.2,0.002]
[1760821200464,1.728,3894.3,3894.2,0.002]
[1760821200639,0.6336,3894.6,3894.2,0.002]
[1760821200640,1.728,3894.4,3894.2,0.002]
[1760821200832,1.728,3894.4,3894.2,0.4546]
[1760821201022,2.13081831,3894.4,3894.2,0.002]
[1760821201218,2.13081831,3894.4,3894.3,0.4526]
[1760821202428,2.17558039,3894.4,3894.3,0.4526]
[1760821203852,1.77276208,3894.4,3894.3,0.4526]
[1760821206452,1.77276208,3894.4,3894.2,0.002]
[1760821206782,1.77276208,3894.4,3894.2,0.4561]
[1760821207120,1.77276208,3894.4,3894.3,0.4448]
[1760821207522,1.77276208,3894.4,3894.2,0.002]
[1760821207962,2.17555526,3894.4,3894.2,0.002]
[1760821208652,2.17555526,3894.4,3894.3,0.002]
[1760821210641,2.17555526,3894.4,3894.3,0.4468]
[1760821211961,2.17555526,3894.4,3894.3,0.002]
[1760821212874,2.43795526,3894.4,3894.3,0.002]
[1760821213064,2.17555526,3894.4,3894.3,0.002]
[1760821214356,1.77276208,3894.4,3894.3,0.002]
[1760821215883,0.04476208,3894.4,3894.3,0.002]
[1760821216057,0.04476208,3894.4,3894.3,0.4468]
[1760821217080,0.17276208,3894.4,3894.3,0.4468]
[1760821217948,0.128,3894.4,3894.3,0.4468]
[1760821218969,0.40276601,3894.8,3894.3,3.01465558]
[1760821219176,0.128,3894.6,3894.4,0.4448]
[1760821220884,0.128,3894.6,3894.5,0.4448]
[1760821221182,0.17275618,3894.6,3894.3,0.002]
[1760821221498,0.17275618,3894.6,3894.5,0.4448]
[1760821225611,0.17275618,3894.6,3894.3,0.002]
[1760821225915,0.17275618,3894.6,3894.4,0.4448]
[1760821226126,0.17275618,3894.6,3894.5,0.4448]
[1760821226480,0.17375618,3894.6,3894.5,0.4448]
[1760821226680,0.129,3894.6,3894.5,0.4448]
[1760821229000,0.129,3894.6,3894.3,0.002]
[1760821229208,0.001,3894.6,3894.5,0.4448]
[1760821229578,0.001,3894.6,3894.5,3.01252371]
[1760821229811,0.001,3894.6,3894.5,3.5837625]
[1760821231115,0.04575385,3894.6,3894.5,3.5837625]
[1760821234118,0.04575385,3894.6,3894.5,3.7117625]
[1760821234298,0.001,3894.6,3894.5,1.14403879]
[1760821235040,0.001,3894.6,3894.5,0.128]
[1760821235221,0.001,3894.6,3894.4,3.86999999]
[1760821235530,0.001,3894.6,3894.4,6.43777834]
[1760821235932,0.001,3894.6,3894.4,3.86999999]
[1760821238127,0.04575403,3894.6,3894.4,3.86999999]
[1760821238530,0.001,3894.6,3894.4,3.86999999]
[1760821238935,0.001,3894.6,3894.4,6.43777704]
[1760821240224,0.001,3894.6,3894.4,6.89027704]
[1760821240427,0.001,3894.6,3894.5,3.02022371]
[1760821243940,0.001,3894.6,3894.5,2.56772371]
[1760821244145,0.001,3894.6,3894.5,3.02022371]
[1760821245837,0.001,3894.6,3894.4,3.87199999]
[1760821245838,0.001,3894.6,3894.4,6.43976441]
[1760821246040,0.001,3894.6,3894.4,6.89226441]
[1760821247140,0.001,3894.6,3894.5,2.56772371]
[1760821248132,0.001,3894.6,3894.5,3.02022371]
[1760821248323,0.001,3894.6,3894.4,3.87199999]
[1760821248841,0.001,3894.6,3894.5,2.56772371]
[1760821251150,0.001,3894.6,3894.4,6.43977496]
[1760821251748,0.001,3894.6,3894.5,2.56772371]
[1760821252645,0.001,3894.6,3894.4,3.87199999]
[1760821253144,0.001,3894.6,3894.4,6.43974613]
[1760821255150,0.001,3894.6,3894.5,2.56772371]
[1760821256018,0.001,3894.6,3894.5,3.02022371]
[1760821258853,0.001,3894.6,3894.4,6.4397818]
[1760821259351,0.2437,3894.6,3894.4,3.87199999]
[1760821259855,0.001,3894.6,3894.4,3.87199999]
[1760821260041,0.001,3894.6,3894.4,6.43978702]
[1760821261119,0.001,3894.6,3894.5,0.002]
[1760821261320,0.001,3894.6,3894.5,2.56972371]
[1760821261748,0.001,3894.6,3894.5,0.002]
[1760821262153,0.2437,3894.6,3894.5,0.002]
[1760821262743,0.001,3894.6,3894.5,0.002]
[1760821263356,0.001,3894.6,3894.5,2.56972371]
[1760821264060,0.001,3894.6,3894.5,3.02222371]
[1760821265027,0.001,3894.6,3894.5,2.56972371]
[1760821265248,0.001,3894.6,3894.5,3.02362371]
[1760821265755,0.001,3894.6,3894.5,2.56972371]
[1760821266144,0.001,3894.6,3894.5,7.87884861]
[1760821266455,0.001,3894.6,3894.5,7.85317138]
[1760821266822,0.001,3894.6,3894.5,7.98117138]
[1760821269157,0.001,3894.6,3894.5,8.10917138]
[1760821284813,0.001,3894.6,3894.5,10.69617138]
[1760821286562,0.001,3894.6,3894.5,13.05777138]
[1760821288979,0.001,3894.6,3894.5,9.18777139]
[1760821290999,0.001,3894.6,3894.5,11.89577139]
[1760821296509,0.001,3894.6,3894.5,9.30877139]
[1760821296707,0.001,3894.6,3894.5,11.89577139]
[1760821303515,0.001,3895.0,3894.9,4.29546001]
[1760821303711,0.2435,3895.0,3894.9,7.95465997]
[1760821303915,0.2435,3895.0,3894.9,8.08265997]
[1760821304221,0.2435,3895.0,3894.9,8.32615997]
[1760821306437,0.2435,3895.0,3894.9,5.74015997]
[1760821306642,0.2435,3895.0,3894.9,8.32615997]
[1760821308107,0.001,3895.0,3894.9,8.32615997]
[1760821309544,0.001,3895.0,3894.9,12.19515996]
[1760821316541,0.001,3895.0,3894.9,12.64875996]
[1760821316746,0.001,3895.0,3894.9,13.28235996]
[1760821317739,0.001,3895.0,3894.9,12.82875996]
[1760821325368,0.001,3895.0,3894.9,13.26425996]
[1760821325866,0.001,3895.0,3894.9,12.82875996]
[1760821326074,0.001,3895.0,3894.9,13.26425996]
[1760821335587,0.001,3895.0,3894.9,12.82875996]
[1760821344673,0.001,3895.4,3895.2,4.29526227]
[1760821344989,0.001,3895.4,3895.3,8.97952258]
[1760821345188,0.001,3895.4,3895.3,9.10752258]
[1760821345389,0.001,3895.4,3895.3,9.21043884]
[1760821349486,0.2435,3895.4,3895.3,9.21043884]
[1760821351414,0.001,3895.4,3895.3,6.64324248]
[1760821351685,0.001,3895.4,3894.6,0.002]
[1760821351686,2.56728063,3895.2,3894.6,0.002]
[1760821351880,0.2425,3895.1,3894.6,0.002]
[1760821352205,0.59605226,3895.1,3894.5,0.002]
[1760821352514,2.5675865,3894.8,3894.5,0.002]
[1760821353112,0.2405,3894.7,3894.5,0.002]
[1760821354584,0.28525456,3894.7,3894.5,0.002]
[1760821355420,2.852847,3894.7,3894.5,0.002]
[1760821358625,2.80815778,3894.6,3894.5,0.002]
[1760821364535,2.85291327,3894.6,3894.5,0.002]
[1760821366227,2.80815778,3894.6,3894.5,0.002]
[1760821370665,2.85291646,3894.6,3894.5,0.002]
[1760821374852,11.70980746,3894.6,3894.5,0.002]
[1760821375394,11.08138346,3894.6,3894.5,0.002]
[1760821376095,12.80938346,3894.6,3894.5,0.002]
[1760821376251,4.70361933,3893.8,3893.2,0.6904]
[1760821376451,2.56799376,3894.1,3893.2,0.2273]
[1760821376650,1.728,3894.2,3893.3,0.4631]
[1760821377181,2.56806286,3894.0,3893.3,0.4631]
[1760821377550,2.56800991,3894.1,3893.3,0.4631]
[1760821378244,0.40281221,3894.0,3893.3,0.4631]
[1760821378789,2.97086847,3894.0,3893.3,0.4631]
[1760821380297,0.40281221,3894.0,3893.3,0.4631]
[1760821380749,0.04476284,3893.9,3893.3,0.4631]
[1760821381376,0.04476284,3893.9,3893.3,0.4651]
[1760821383800,0.04476284,3893.9,3893.4,2.56844917]
[1760821384092,0.04476284,3893.9,3893.5,0.4631]
[1760821385213,0.04476284,3893.9,3893.8,2.56818532]
[1760821385386,0.001,3894.6,3894.5,2.56772371]
[1760821385905,0.001,3894.7,3894.5,4.76212371]
[1760821386062,0.001,3895.0,3894.9,2.56746001]
[1760821386264,0.001,3895.0,3894.9,2.59313461]
[1760821386505,0.001,3895.0,3894.9,3.18753461]
[1760821386711,0.001,3895.0,3894.9,3.76304275]
[1760821387093,0.001,3895.0,3894.9,3.73736815]
[1760821388481,0.001,3895.0,3894.9,0.128]
[1760821388681,0.2433,3895.0,3894.5,2.56772195]
[1760821388881,0.2423,3894.9,3894.7,0.128]
[1760821389095,0.2423,3894.9,3894.3,0.128]
[1760821389412,0.129,3895.0,3894.3,0.128]
[1760821389413,0.2423,3894.8,3894.3,0.128]
[1760821389620,0.128,3894.6,3893.9,0.128]
[1760821390316,0.2423,3894.5,3893.9,0.128]
[1760821394219,0.17275506,3894.6,3893.9,0.128]
[1760821394395,0.17275506,3894.6,3894.0,3.00700664]
[1760821394596,0.17275506,3894.6,3894.1,3.20077899]
[1760821394796,0.17275506,3894.6,3894.2,0.439]
[1760821394997,0.17275506,3894.6,3894.3,0.439]
[1760821395715,0.17275506,3894.6,3893.9,2.69606948]
[1760821395887,0.17275506,3894.6,3894.0,2.5680419]
[1760821396086,0.17275506,3894.6,3894.0,3.0070419]
[1760821396617,0.17275506,3894.6,3894.1,2.76175525]
[1760821396996,0.17275506,3894.6,3894.1,0.1938]
[1760821397190,0.17275506,3894.6,3893.7,3.83939779]
[1760821397191,0.2423,3894.5,3893.7,3.83939779]
[1760821397823,2.56773194,3894.5,3893.7,3.83939779]
[1760821398024,0.2423,3894.4,3893.7,3.83939779]
[1760821398191,0.2423,3894.3,3893.7,3.83939779]
[1760821398889,0.04475919,3894.2,3893.8,0.002]
[1760821399303,0.28705919,3894.2,3893.8,0.002]
[1760821399523,0.6757,3894.1,3893.8,0.002]
[1760821400047,0.2207,3894.0,3893.8,0.002]
[1760821400410,0.2342,3894.1,3893.8,0.002]
[1760821400741,0.2207,3893.9,3893.8,0.002]
[1760821401531,0.2342,3894.1,3893.8,0.002]
[1760821402232,0.2207,3894.0,3893.8,0.002]
[1760821403251,0.2207,3893.9,3893.8,0.002]
[1760821403450,2.78881936,3893.9,3893.8,0.002]
[1760821405445,0.2207,3893.9,3893.8,0.002]
[1760821410143,5.10646438,3894.0,3893.8,0.002]
[1760821410513,5.32716438,3894.0,3893.8,0.002]
[1760821410711,5.10646438,3894.0,3893.8,0.002]
[1760821411031,0.2207,3893.9,3893.8,0.002]
[1760821411363,0.5760234,3893.9,3893.8,0.002]
[1760821412660,0.62078993,3893.9,3893.8,0.002]
[1760821413759,2.7026186,3892.9,3892.8,4.29682524]
[1760821413958,2.7026186,3892.9,3892.8,1.728]
[1760821414126,2.7026186,3892.9,3892.7,3.87]
[1760821414326,2.7026186,3892.9,3892.7,4.77099693]
[1760821415666,2.7026186,3892.9,3892.8,0.4032]
[1760821415827,2.7026186,3892.9,3892.5,0.002]
[1760821415828,3.1748186,3892.9,3892.5,0.002]
[1760821416034,0.4722,3892.8,3892.5,0.002]
[1760821416560,0.4722,3892.7,3892.5,0.002]
[1760821416862,0.4722,3892.7,3892.6,0.002]
[1760821417564,2.9244186,3892.9,3892.6,0.002]
[1760821418066,3.3966186,3892.9,3892.6,0.002]
[1760821419167,0.694,3892.9,3892.6,0.002]
[1760821420755,0.73877557,3892.9,3892.6,0.002]
[1760821420965,0.04477557,3892.9,3892.6,0.002]
[1760821423689,0.128,3892.8,3892.6,0.002]
[1760821427390,4.4306186,3892.7,3892.6,0.002]
[1760821428189,4.9028186,3892.7,3892.6,0.002]
[1760821430861,4.4306186,3892.7,3892.6,0.002]
[1760821431052,4.9028186,3892.7,3892.6,0.002]
[1760821432862,4.4306186,3892.7,3892.6,0.002]
[1760821437200,4.9028186,3892.7,3892.6,0.002]
[1760821438865,4.4306186,3892.7,3892.6,0.002]
[1760821440988,4.9028186,3892.7,3892.6,0.002]
[1760821441773,4.4306186,3892.7,3892.6,0.002]
[1760821442203,4.9028186,3892.7,3892.6,0.002]
[1760821442408,2.2002,3892.7,3892.6,0.002]
[1760821443276,1.728,3892.7,3892.6,0.002]
[1760821444415,2.7006186,3892.6,3892.5,0.002]
[1760821449116,3.2865186,3892.6,3892.5,0.002]
[1760821450951,5.0145186,3892.6,3892.5,0.002]
[1760821452521,7.58349563,3892.6,3892.5,0.002]
[1760821454143,5.0145186,3892.6,3892.5,0.002]
[1760821454813,3.2865186,3892.6,3892.5,0.002]
[1760821455235,2.8286186,3892.6,3892.5,0.002]
[1760821455807,3.2865186,3892.6,3892.5,0.002]
[1760821459430,0.5859,3892.6,3892.5,0.002]
[1760821460042,0.128,3892.6,3892.5,0.002]
[1760821460921,0.5859,3892.6,3892.5,0.002]
[1760821461352,2.6986186,3892.5,3892.3,0.002]
[1760821461931,2.74339668,3892.5,3892.3,0.002]
[1760821464248,0.128,3892.4,3892.3,0.002]
[1760821464455,0.128,3892.4,3892.3,0.4052]
[1760821464955,0.128,3892.4,3892.3,0.002]
[1760821465341,2.74339668,3892.5,3892.3,0.002]
[1760821465342,0.04477808,3892.5,3892.3,0.002]
[1760821466052,0.04477808,3892.5,3892.3,2.57116107]
[1760821466256,0.04477808,3892.5,3892.4,0.4032]
[1760821466621,0.04477808,3892.5,3892.4,2.97230903]
[1760821467429,0.04477808,3892.5,3892.3,0.002]
[1760821469227,0.04477808,3892.5,3892.3,2.57115338]
[1760821469633,0.04477808,3892.5,3892.4,2.56910903]
[1760821469833,0.04477808,3892.5,3892.4,0.51444127]
[1760821470961,0.04477808,3892.5,3892.3,0.002]
[1760821471150,0.4579,3892.4,3892.3,0.002]
[1760821477338,0.04477808,3892.5,3892.3,0.002]
[1760821477967,0.47777808,3892.5,3892.3,0.002]
[1760821478160,0.433,3892.4,3892.3,0.002]
[1760821484056,0.433,3892.4,3888.7,4.70361933]
[1760821484057,0.6336,3892.0,3888.7,4.70361933]
[1760821484359,2.3616,3891.2,3889.8,0.161]
[1760821484553,0.6336,3891.0,3890.1,2.57062355]
[1760821484753,0.6336,3891.0,3890.1,3.03792355]
[1760821484955,0.6696,3890.9,3890.1,0.4673]
[1760821485155,0.6696,3890.9,3890.1,3.32001983]
[1760821485352,2.161,3891.2,3890.3,2.57044095]
[1760821486181,0.433,3891.1,3890.2,0.4673]
[1760821486486,2.3616,3891.3,3890.3,2.57048152]
[1760821486787,0.433,3891.2,3890.3,2.57048152]
[1760821486983,0.6336,3891.2,3890.2,3.03785562]
[1760821487285,0.433,3891.1,3890.3,2.57049407]